bitfinex/quotes_ETHUSD_20260208
["timestamp","ask_amount","ask_price","bid_price","bid_amount"]
[1770593111788,0.05243089,2090.2,2088.9,1.19676368]
[1770593111950,0.05243089,2090.5,2088.3,1.51166337]
[1770593112155,0.002,2089.3,2089.0,1.19673954]
[1770593112482,0.002,2089.3,2088.6,4.738117]
[1770593112687,0.002,2089.3,2088.4,4.78826412]
[1770593113687,0.002,2089.3,2088.4,1.19708868]
[1770593114184,0.002,2089.3,2088.3,1.19711496]
[1770593114374,0.002,2089.3,2088.0,1.197318]
[1770593115097,0.05243089,2089.2,2088.0,1.197318]
[1770593115257,0.002,2089.3,2088.0,1.197318]
[1770593116059,0.05243089,2088.8,2087.9,1.19736641]
[1770593116256,1.19691674,2088.7,2087.4,4.79347018]
[1770593116575,1.19674485,2089.0,2087.4,4.79347018]
[1770593117065,0.05243089,2088.8,2087.4,4.79347018]
[1770593117390,1.19674485,2089.0,2087.4,8.13947018]
[1770593117587,0.05243089,2088.8,2087.4,8.13947018]
[1770593117760,1.19674485,2089.0,2087.4,8.13947018]
[1770593117961,0.002,2089.3,2087.5,4.866183]
[1770593118163,1.19665375,2089.2,2087.7,2.192118]
[1770593118366,0.05243089,2089.2,2087.8,1.1974327]
[1770593118860,0.002,2089.3,2087.8,4.5434327]
[1770593119205,0.002,2089.3,2087.9,8.533989]
[1770593119402,0.05243089,2089.2,2087.8,1.1974327]
[1770593120470,1.19668756,2089.1,2087.7,4.78973081]
[1770593121649,0.05243089,2088.9,2087.7,4.78973081]
[1770593121978,1.24911845,2089.1,2087.7,4.78973081]
[1770593122393,0.002,2089.3,2087.7,4.78973081]
[1770593122890,0.002,2089.3,2087.8,5.39115]
[1770593123482,0.002,2089.3,2087.7,4.78973081]
[1770593123690,0.05243089,2089.1,2087.7,4.78973081]
[1770593123881,0.65243089,2089.1,2087.7,4.78973081]
[1770593124077,4.78561427,2089.6,2087.7,4.78973081]
[1770593124078,0.05243089,2090.8,2088.6,4.37954546]
[1770593124301,0.05243089,2090.3,2088.7,4.79184546]
[1770593124481,1.19582894,2090.6,2089.0,3.14115]
[1770593124682,1.19582894,2090.6,2088.9,1.19680214]
[1770593125011,1.19582894,2090.6,2089.0,3.497465]
[1770593125210,1.19565737,2090.9,2089.0,3.497465]
[1770593125505,1.19565737,2090.9,2089.1,4.722215]
[1770593125707,1.24785957,2091.3,2089.3,7.58833746]
[1770593125920,1.24785957,2091.3,2089.4,6.804492]
[1770593126211,1.19542868,2091.3,2089.5,6.093062]
[1770593126408,0.05243089,2091.0,2089.8,1.19628672]
[1770593126594,0.002,2090.0,2089.8,1.19628672]
[1770593126982,0.05243089,2091.3,2089.8,1.19628672]
[1770593127185,1.57471043,2091.4,2089.8,1.19628672]
[1770593127404,0.05243089,2091.1,2089.8,1.19628672]
[1770593127594,0.05243089,2091.0,2089.8,1.19628672]
[1770593127790,0.32689574,2091.4,2090.1,1.44584546]
[1770593128011,1.19497155,2092.2,2090.2,3.345]
[1770593128198,4.77996434,2092.1,2090.3,1.44584546]
[1770593128401,1.19445771,2093.0,2091.1,1.44584546]
[1770593128589,5.1041739,2093.2,2091.4,1.44584546]
[1770593128590,1.52098999,2093.2,2091.4,1.44584546]
[1770593128908,1.19435962,2093.2,2091.4,1.44584546]
[1770593129087,0.1,2093.4,2091.9,1.49827635]
[1770593129287,0.1,2093.4,2092.0,2.248]
[1770593129497,0.1,2093.4,2092.1,3.345]
[1770593129899,0.1,2093.4,2092.2,3.78097189]
[1770593130101,0.1,2093.4,2091.9,1.49827635]
[1770593130102,1.29423096,2093.4,2091.9,1.49827635]
[1770593130286,1.24423328,2093.4,2092.2,3.344]
[1770593130636,1.24423328,2093.4,2091.3,0.05243089]
[1770593130637,0.05243089,2092.8,2091.7,4.78061778]
[1770593130915,0.05243089,2092.8,2090.9,3.121541]
[1770593131111,0.05243089,2093.0,2091.9,1.19508235]
[1770593131321,0.05243089,2092.7,2091.6,1.19520608]
[1770593131527,0.05243089,2092.4,2091.4,1.19537057]
[1770593131806,0.05243089,2092.7,2091.8,1.19510938]
[1770593132011,0.05243089,2092.6,2090.8,3.343]
[1770593132207,0.05243089,2092.3,2091.4,1.19533392]
[1770593132707,1.19480022,2092.4,2091.0,1.19560019]
[1770593132926,0.05243089,2091.4,2089.9,1.44584546]
[1770593133222,0.05243089,2091.6,2090.0,2.330815]
[1770593133512,0.05243089,2091.6,2089.9,1.44584546]
[1770593133513,1.19480022,2092.4,2090.9,1.19564777]
[1770593133718,0.05243089,2092.2,2090.9,1.19564777]
[1770593133886,1.19480022,2092.4,2090.9,1.19564777]
[1770593134080,0.05243089,2092.2,2090.9,1.19564777]
[1770593134299,1.19480022,2092.4,2090.9,1.19564777]
[1770593134601,1.24705983,2092.7,2091.1,1.19554301]
[1770593134987,1.19462894,2092.7,2091.1,1.19554301]
[1770593135198,1.19462894,2092.7,2091.1,1.19401857]
[1770593135395,4.77851579,2092.9,2091.1,1.19401857]
[1770593135396,0.05243089,2092.6,2091.2,4.085554]
[1770593135593,0.05243089,2092.9,2091.2,3.452547]
[1770593135816,0.05243089,2092.6,2091.1,1.19401857]
[1770593136202,0.05243089,2092.3,2091.1,1.19401857]
[1770593136720,0.05243089,2092.3,2091.1,1.14401857]
[1770593137124,1.19491444,2092.2,2091.0,4.78217206]
[1770593137429,1.19491444,2092.2,2090.9,4.78217206]
[1770593137926,0.05243089,2092.6,2090.9,4.78217206]
[1770593138137,1.19451478,2092.9,2091.1,6.53853046]
[1770593138448,0.002,2092.0,2091.2,2.91515]
[1770593138789,0.002,2092.0,2091.1,1.44584546]
[1770593139207,0.002,2092.0,2091.2,1.19548584]
[1770593141013,0.002,2092.0,2091.3,3.836835]
[1770593141214,0.002,2092.0,2091.4,1.19537152]
[1770593141614,0.002,2092.0,2091.3,1.19541976]
[1770593143293,0.002,2092.0,2091.0,4.78232451]
[1770593143498,0.002,2092.0,2091.1,3.08881]
[1770593144214,0.002,2092.0,2091.0,4.78232451]
[1770593144624,0.002,2092.0,2091.2,12.004685]
[1770593144832,0.002,2092.0,2091.3,5.569226]
[1770593145038,0.002,2092.2,2091.4,2.357]
[1770593145335,0.002,2092.2,2091.4,1.19537152]
[1770593145641,1.52022416,2094.6,2092.1,10.56398496]
[1770593145843,0.32619467,2095.0,2092.8,1.63092061]
[1770593145844,1.19337438,2094.9,2092.8,1.63092061]
[1770593146058,4.8247046,2095.5,2093.4,0.05243089]
[1770593146208,0.05243089,2094.9,2093.4,3.341]
[1770593146402,0.05131635,2095.2,2093.4,3.341]
[1770593146604,4.8247046,2095.5,2093.5,10.98277572]
[1770593146809,4.8247046,2095.5,2093.7,5.764562]
[1770593147106,4.77227371,2095.5,2093.7,3.5311]
[1770593147307,0.05243089,2095.3,2094.0,1.19388729]
[1770593147508,0.05243089,2095.0,2093.9,1.19393728]
[1770593147837,0.05243089,2094.9,2093.9,1.19393804]
[1770593148008,0.05243089,2095.3,2093.9,1.19393804]
[1770593148208,0.05243089,2095.6,2093.9,1.19393804]
[1770593148422,4.77140464,2095.9,2094.0,2.227292]
[1770593148630,0.05243089,2095.7,2094.1,3.34]
[1770593148806,0.05243089,2095.4,2094.1,3.34]
[1770593149012,4.77140464,2095.9,2094.1,3.34]
[1770593149208,0.05243089,2095.8,2094.1,3.34]
[1770593149409,0.05243089,2095.7,2094.2,1.19377327]
[1770593149609,0.05243089,2095.9,2094.2,1.19377327]
[1770593149832,0.05243089,2095.9,2094.3,2.94]
[1770593150142,0.002,2096.1,2094.3,4.51848972]
[1770593150443,0.002,2096.1,2094.4,2.332]
[1770593150626,0.002,2096.1,2094.4,1.57848972]
[1770593150937,0.002,2096.1,2095.0,16.23881372]
[1770593151139,0.002,2096.1,2094.8,10.61641585]
[1770593151140,0.002,2096.1,2095.2,7.925487]
[1770593151310,0.002,2096.1,2095.3,1.19314656]
[1770593152034,0.00157046,2096.4,2095.5,3.576625]
[1770593152205,0.00157046,2096.4,2095.4,2.915]
[1770593152406,0.00157046,2096.4,2095.2,1.19316515]
[1770593152606,0.00157046,2096.4,2095.2,4.53216515]
[1770593152834,0.002,2095.9,2095.3,2.357]
[1770593153027,0.002,2095.9,2095.3,2.458737]
[1770593153229,0.00157046,2096.4,2095.3,2.458737]
[1770593153230,0.00157046,2096.4,2095.4,1.57848972]
[1770593153430,0.00157046,2096.4,2095.6,1.19297575]
[1770593153608,0.00157046,2096.4,2095.7,5.790446]
[1770593153809,0.00157046,2096.4,2095.7,3.141855]
[1770593154008,0.00157046,2096.4,2095.6,1.19297575]
[1770593154419,0.00157046,2096.4,2094.9,4.77339732]
[1770593154623,0.00157046,2096.4,2095.5,1.19302088]
[1770593154826,0.00157046,2096.4,2095.6,3.337]
[1770593155022,0.00157046,2096.4,2095.7,2.441264]
[1770593155449,0.00157046,2096.4,2095.8,1.19286191]
[1770593155748,0.00157046,2096.4,2095.9,3.422]
[1770593156441,0.00157046,2096.4,2095.9,2.357]
[1770593156636,0.00157046,2096.4,2095.8,1.19286191]
[1770593156842,0.00157046,2096.4,2094.7,1.57848972]
[1770593157149,0.00157046,2096.4,2095.4,4.77235647]
[1770593157320,0.00157046,2096.4,2095.6,4.77167533]
[1770593157529,0.00157046,2096.4,2095.6,1.19297575]
[1770593157730,0.00157046,2096.4,2095.7,9.32780261]
[1770593158035,0.002,2096.8,2095.8,5.896028]
[1770593158234,0.002,2096.8,2095.8,0.05243089]
[1770593158434,0.002,2096.8,2095.6,4.52897575]
[1770593158714,0.002,2096.8,2095.6,3.336]
[1770593158914,0.05243089,2096.7,2095.6,3.336]
[1770593159126,0.002,2096.8,2095.5,1.19300495]
[1770593159540,0.002,2096.8,2095.3,1.19314656]
[1770593159541,0.05243089,2096.7,2095.3,1.19314656]
[1770593159963,0.05243089,2096.6,2095.2,4.5291997]
[1770593160258,0.002,2096.8,2095.3,3.172239]
[1770593160444,0.05243089,2096.6,2095.2,4.5291997]
[1770593160646,0.05243089,2096.3,2095.1,1.19322234]
[1770593160843,1.52222416,2096.8,2095.3,2.185098]
[1770593161158,1.52222416,2096.8,2095.2,1.19319571]
[1770593161664,1.52222416,2096.8,2094.9,1.19336252]
[1770593161665,0.05243089,2096.6,2094.9,1.19336252]
[1770593161961,0.05243089,2096.6,2095.0,4.935535]
[1770593162162,1.19234988,2096.7,2095.0,4.593697]
[1770593162362,1.57265505,2096.6,2094.9,1.19336252]
[1770593162663,0.05243089,2096.3,2094.9,1.19336033]
[1770593162867,1.57265505,2096.6,2094.9,1.19336033]
[1770593163038,0.05243089,2096.6,2094.9,1.19336033]
[1770593163240,1.19234988,2096.7,2095.0,9.294314]
[1770593163567,1.19246362,2096.5,2095.1,1.19326046]
[1770593164371,1.57265505,2096.5,2095.0,1.19327909]
[1770593164670,1.52022416,2096.5,2095.2,0.001]
[1770593164866,1.19234988,2096.7,2095.2,0.001]
[1770593165167,0.002,2096.5,2095.2,0.001]
[1770593165874,0.05243089,2096.3,2095.2,0.001]
[1770593166172,0.05243089,2096.0,2095.2,0.001]
[1770593166672,0.05243089,2095.7,2093.8,1.57848972]
[1770593166873,1.52022416,2095.9,2094.5,1.19355344]
[1770593167039,0.05243089,2095.8,2094.7,1.19347878]
[1770593167240,0.05243089,2095.8,2094.0,4.547165]
[1770593167437,3.334,2096.3,2095.0,1.19328579]
[1770593167641,1.19263429,2096.2,2094.7,4.77326968]
[1770593168055,1.24506518,2096.2,2094.7,3.08]
[1770593168255,1.19448502,2096.5,2094.8,4.91248972]
[1770593168504,1.19448502,2096.5,2094.9,3.73805]
[1770593168681,1.19448502,2096.5,2095.0,3.767]
[1770593168682,1.19447036,2096.5,2095.0,3.767]
[1770593168848,0.05243089,2096.1,2094.8,3.334]
[1770593169041,1.19450758,2096.5,2095.2,0.05243089]
[1770593169268,2.76716263,2096.5,2094.8,3.334]
[1770593169464,0.05243089,2096.2,2094.8,3.334]
[1770593169644,1.19269118,2096.1,2094.9,1.19337438]
[1770593169844,0.05243089,2095.9,2094.4,1.19361076]
[1770593170045,0.05243089,2095.9,2093.9,4.91248972]
[1770593170245,0.05243089,2095.8,2094.0,1.57848972]
[1770593170547,1.19269118,2096.1,2094.8,1.19342062]
[1770593170962,1.19252051,2096.4,2094.8,1.19342062]
[1770593171275,0.05243089,2095.9,2093.2,0.05243089]
[1770593171481,2.71274467,2096.4,2094.8,1.1934256]
[1770593171772,1.19269118,2096.1,2094.5,5.063]
[1770593172355,1.19269118,2096.1,2094.6,5.56425]
[1770593172598,4.8244979,2096.5,2094.6,7.14273972]
[1770593172764,1.19449889,2096.5,2094.9,8.42048972]
[1770593172968,0.05243089,2096.3,2094.4,4.82687259]
[1770593173167,1.19449889,2096.5,2094.4,4.82687259]
[1770593173168,0.05243089,2096.2,2094.5,2.025101]
[1770593173476,0.05243089,2096.2,2094.4,4.7744417]
[1770593173692,1.19269118,2096.1,2094.4,4.7744417]
[1770593174182,0.05243089,2095.9,2094.4,4.7744417]
[1770593174588,1.19269118,2096.1,2094.4,4.7744417]
[1770593174793,0.05243089,2095.8,2094.4,4.7744417]
[1770593175121,0.05243089,2095.5,2094.0,3.334]
[1770593175398,0.05243089,2095.4,2094.1,1.19378768]
[1770593175690,1.19314656,2095.3,2094.0,4.52787701]
[1770593175896,1.19314656,2095.3,2094.0,4.52787671]
[1770593176606,1.24557745,2095.3,2094.0,4.52785935]
[1770593176964,1.19314656,2095.3,2094.0,4.52785935]
[1770593177403,4.77095416,2096.1,2094.3,4.17137913]
[1770593177568,0.05243089,2096.0,2094.3,1.59537913]
[1770593177770,1.192805,2095.9,2094.4,1.19365928]
[1770593178082,1.192805,2095.9,2094.6,0.001]
[1770593178511,0.002,2095.6,2094.6,0.001]
[1770593179467,0.05243089,2095.5,2094.6,0.001]
[1770593179667,0.002,2095.6,2094.6,0.001]
[1770593179964,1.19308962,2095.4,2094.6,0.001]
[1770593180164,0.05243089,2095.2,2094.6,0.001]
[1770593180792,2.66825701,2095.4,2094.6,0.001]
[1770593180998,0.05243089,2095.1,2094.6,0.001]
[1770593181173,2.66825701,2095.4,2094.6,0.001]
[1770593181370,0.05243089,2094.9,2094.4,0.001]
[1770593181568,0.05243089,2094.9,2093.8,1.19399593]
[1770593181774,0.05243089,2094.9,2092.1,1.59537913]
[1770593181775,1.52759828,2094.2,2092.1,1.59537913]
[1770593181971,1.52759828,2094.2,2092.4,3.579529]
[1770593181972,0.05243089,2093.8,2092.4,3.579529]
[1770593182176,1.24626117,2094.1,2092.2,0.003]
[1770593182177,0.05243089,2093.7,2092.2,0.003]
[1770593182388,1.47516739,2094.0,2092.2,0.003]
[1770593182695,0.05243089,2093.8,2092.2,0.003]
[1770593183211,1.47516739,2094.0,2092.2,0.003]
[1770593183212,0.05243089,2094.0,2092.2,0.003]
[1770593183526,0.05243089,2093.7,2092.2,0.003]
[1770593183713,0.05243089,2094.0,2092.2,1.59837913]
[1770593183873,0.05243089,2094.0,2092.4,1.19480022]
[1770593184187,0.05243089,2094.0,2092.5,0.003]
[1770593184707,0.05243089,2094.0,2092.4,1.19480022]
[1770593184909,0.05243089,2094.0,2092.5,0.003]
[1770593185089,2.66899767,2094.1,2092.5,0.003]
[1770593185090,1.19383028,2094.1,2092.6,5.794207]
[1770593185283,1.19383028,2094.1,2092.7,4.169053]
[1770593185486,1.19383028,2094.1,2092.6,1.59537913]
[1770593185685,1.19383028,2094.1,2092.7,2.736]
[1770593185887,0.1024,2094.4,2092.8,1.19457186]
[1770593186206,0.05243089,2094.3,2092.8,1.19757186]
[1770593186577,0.05243089,2094.0,2092.8,0.003]
[1770593186903,0.05243089,2094.3,2092.8,0.003]
[1770593187099,0.05243089,2094.0,2092.8,0.003]
[1770593187981,1.19360229,2094.5,2093.0,1.59537913]
[1770593188487,1.19119272,2094.5,2093.0,1.59537913]
[1770593188889,1.19119272,2094.5,2093.1,0.003]
[1770593189403,1.19119272,2094.5,2093.2,3.438008]
[1770593189895,4.77369271,2094.9,2093.3,1.19428653]
[1770593190095,4.77369271,2094.9,2093.3,1.19728653]
[1770593190602,0.05243089,2094.7,2093.3,1.19728653]
[1770593192014,1.19320351,2095.2,2093.7,2.046]
[1770593192416,0.002,2094.3,2093.7,2.046]
[1770593192783,0.002,2094.3,2093.6,1.19411539]
[1770593193011,0.002,2094.3,2093.5,6.37184072]
[1770593193012,0.002,2094.3,2093.8,0.003]
[1770593193196,0.002,2094.3,2093.5,1.19415549]
[1770593193197,0.002,2094.3,2093.9,0.003]
[1770593193384,0.002,2094.3,2093.6,0.003]
[1770593195096,0.001,2094.5,2093.8,1.59537913]
[1770593195418,0.002,2095.6,2094.1,4.44415989]
[1770593195419,1.19308962,2095.4,2094.1,4.44415989]
[1770593195581,1.19308962,2095.4,2094.2,3.38]
[1770593196019,0.002,2095.6,2094.4,3.448]
[1770593196189,0.002,2095.6,2094.3,1.19371627]
[1770593196382,0.002,2095.6,2094.4,11.95360213]
[1770593196598,0.002,2095.6,2094.4,1.59537913]
[1770593196779,0.002,2095.6,2094.6,1.59537913]
[1770593196981,0.002,2095.6,2094.7,4.020885]
[1770593198214,0.002,2095.6,2094.8,4.52943135]
[1770593198403,0.002,2095.6,2094.7,1.19345806]
[1770593198605,0.002,2095.6,2095.0,1.59537913]
[1770593198814,0.002,2095.6,2095.1,2.611]
[1770593199240,0.002,2095.6,2094.8,0.05243089]
[1770593199241,0.002,2095.6,2094.8,2.64]
[1770593199736,0.002,2095.6,2094.8,2.13]
[1770593200531,0.002,2095.6,2095.0,2.760592]
[1770593200840,0.002,2095.6,2095.1,3.5927]
[1770593201733,0.002,2095.6,2095.3,2.13]
[1770593202033,1.19448644,2096.5,2095.3,3.72537913]
[1770593202238,1.19448644,2096.5,2095.4,3.676]
[1770593202442,0.002,2096.5,2095.2,3.335]
[1770593202655,0.002,2096.5,2095.6,1.19296972]
[1770593203715,0.002,2096.5,2095.2,3.335]
[1770593203923,0.002,2096.5,2095.3,1.19311222]
[1770593204121,0.002,2096.5,2095.3,1.19310551]
[1770593204317,0.002,2096.5,2095.4,1.19308608]
[1770593204522,0.002,2096.5,2095.2,1.19320351]
[1770593205034,0.002,2096.5,2094.9,1.59537913]
[1770593205035,0.05243089,2096.4,2094.9,1.59537913]
[1770593205331,0.05243089,2096.4,2094.0,4.9113178]
[1770593205332,0.05243089,2095.8,2094.0,4.9113178]
[1770593205540,0.05243089,2095.7,2094.7,1.1944379]
[1770593205737,0.002,2095.4,2094.7,0.001]
[1770593206135,0.002,2095.4,2094.8,1.19339929]
[1770593206618,0.002,2095.4,2094.7,0.001]
[1770593206817,0.002,2095.4,2094.8,3.059902]
[1770593207215,0.002,2095.4,2094.9,3.709365]
[1770593208115,0.002,2095.4,2095.0,4.15273]
[1770593208715,0.002,2095.4,2095.2,2.275]
[1770593208911,0.002,2095.4,2094.8,3.335]
[1770593209111,0.002,2095.4,2095.0,1.19327491]
[1770593209338,0.002,2095.4,2094.8,4.52839493]
[1770593209516,0.002,2095.4,2094.9,1.19337415]
[1770593209713,0.002,2095.4,2095.0,1.19331473]
[1770593210329,0.002,2095.4,2094.9,1.19334542]
[1770593211136,0.002,2095.4,2094.8,4.52838902]
[1770593213834,0.002,2095.4,2094.9,3.207342]
[1770593214417,4.52757739,2096.4,2094.8,4.52838902]
[1770593214418,0.002,2096.5,2095.1,11.6762568]
[1770593214720,1.19449023,2096.5,2095.2,3.04615]
[1770593215349,0.002,2096.5,2095.3,1.62874869]
[1770593215648,0.002,2096.5,2094.9,1.5763178]
[1770593215649,0.05243089,2096.4,2094.9,1.5763178]
[1770593215945,1.19263429,2096.2,2095.1,1.19326046]
[1770593216566,1.19263429,2096.2,2095.0,4.52731236]
[1770593216919,1.19263429,2096.2,2095.0,3.334]
[1770593217235,1.19263429,2096.2,2094.7,0.001]
[1770593217236,1.58560841,2096.0,2094.7,0.001]
[1770593217434,1.58560841,2096.0,2094.9,1.19334823]
[1770593217754,1.19263429,2096.2,2095.0,1.19327436]
[1770593218051,1.19263429,2096.2,2094.8,2.065478]
[1770593218260,1.19263429,2096.2,2094.9,8.42686]
[1770593218418,1.19263429,2096.2,2094.9,5.045]
[1770593218619,1.19263429,2096.2,2095.0,0.001]
[1770593218820,0.002,2096.0,2095.0,0.001]
[1770593220037,0.002,2096.0,2095.0,1.5773178]
[1770593220329,0.002,2096.0,2095.0,0.001]
[1770593220833,0.002,2096.0,2095.3,10.643864]
[1770593221068,0.002,2096.2,2095.6,3.454]
[1770593221231,0.002,2096.5,2095.9,1.5763178]
[1770593221555,0.002,2096.5,2096.0,4.166867]
[1770593221858,0.002,2096.8,2096.4,2.8212692]
[1770593222059,0.1425854,2097.6,2096.8,1.5763178]
[1770593222259,0.002,2097.5,2096.9,3.334]
[1770593222446,1.53317752,2098.5,2096.9,3.334]
[1770593222757,0.05243089,2098.4,2096.9,3.334]
[1770593222935,1.58560841,2098.4,2096.9,3.334]
[1770593223130,0.002,2098.3,2097.0,7.37159089]
[1770593223331,0.05243089,2098.7,2097.0,7.37159089]
[1770593223332,0.002,2098.6,2097.0,0.05243089]
[1770593223581,1.58560841,2098.4,2096.9,3.334]
[1770593223933,1.19344069,2098.3,2097.0,1.1921793]
[1770593224334,0.05243089,2098.1,2096.9,3.334]
[1770593224562,0.05243089,2098.1,2096.9,4.52622611]
[1770593224733,0.05243089,2098.1,2096.9,4.5262159]
[1770593224935,0.002,2098.0,2096.9,4.5262159]
[1770593225261,0.002,2098.2,2096.9,4.5262159]
[1770593226031,0.05443089,2098.2,2096.9,3.334]
[1770593226232,0.05243089,2097.9,2096.9,3.334]
[1770593226934,0.05243089,2098.2,2096.9,3.334]
[1770593227152,0.002,2098.1,2096.9,4.52619534]
[1770593227342,1.53517752,2098.3,2096.9,3.334]
[1770593227546,0.002,2098.3,2096.9,4.52621954]
[1770593229339,0.002,2098.3,2097.0,1.5763178]
[1770593230162,0.05443089,2098.3,2097.1,1.19212245]
[1770593230348,0.002,2098.3,2097.1,1.19212245]
[1770593231056,0.05243089,2097.7,2096.2,1.5763178]
[1770593231256,0.05243089,2097.7,2096.5,1.19242333]
[1770593231565,0.05243089,2097.7,2096.6,1.19238339]
[1770593231739,0.002,2097.6,2096.9,1.19220628]
[1770593231938,6.29894028,2098.4,2097.1,0.001]
[1770593232138,1.19355426,2098.1,2097.1,0.001]
[1770593232658,0.002,2098.0,2097.1,0.001]
[1770593233063,0.05243089,2097.9,2097.1,0.001]
[1770593233442,0.002,2097.8,2097.1,0.001]
[1770593233847,0.05243089,2097.6,2097.1,0.001]
[1770593234164,1.19206561,2097.2,2096.0,0.001]
[1770593234539,0.001,2097.1,2096.0,0.001]
[1770593234740,0.001,2097.1,2096.1,1.5763178]
[1770593235686,0.001,2097.1,2096.0,0.001]
[1770593235687,0.001,2097.1,2096.3,1.48811692]
[1770593236180,4.76692421,2097.8,2096.5,1.19246362]
[1770593236382,0.001,2097.7,2096.5,1.19246362]
[1770593236984,1.57155689,2097.6,2096.0,4.77184143]
[1770593237182,0.05243089,2097.3,2096.2,1.19263123]
[1770593237496,0.05243089,2097.3,2096.2,1.19260596]
[1770593237997,0.05243089,2097.0,2096.0,0.001]
[1770593238157,1.19240675,2096.6,2096.0,0.001]
[1770593238984,0.001,2096.5,2096.0,0.001]
[1770593240483,4.82071872,2097.2,2096.0,0.001]
[1770593240665,0.001,2097.1,2096.0,0.001]
[1770593240980,0.05243089,2096.9,2096.0,0.001]
[1770593241182,0.05243089,2096.6,2096.0,0.001]
[1770593241380,0.001,2096.8,2096.0,0.001]
[1770593242587,0.05243089,2096.7,2096.0,0.001]
[1770593242789,0.001,2096.8,2096.0,0.001]
[1770593243283,0.05243089,2096.6,2096.0,0.001]
[1770593243661,0.05243089,2096.6,2095.1,1.19325911]
[1770593243984,0.05243089,2096.6,2095.0,0.001]
[1770593243985,0.05243089,2096.3,2095.0,0.001]
[1770593244176,0.05243089,2096.3,2095.1,1.19325924]
[1770593244481,1.19246362,2096.5,2095.0,0.001]
[1770593244779,0.001,2096.4,2095.0,1.19431742]
[1770593245381,1.19246362,2096.5,2095.0,1.19431742]
[1770593245684,0.001,2096.4,2096.2,0.001]
[1770593245979,0.001,2096.4,2095.2,1.50976088]
[1770593246186,0.001,2096.4,2096.0,0.001]
[1770593246358,0.001,2096.4,2095.2,1.50976088]
[1770593246762,0.05243089,2096.3,2095.2,1.19320125]
[1770593246962,0.001,2096.4,2095.2,1.19320125]
[1770593247186,0.05243089,2096.3,2095.2,1.19320125]
[1770593247486,0.05243089,2096.3,2095.1,1.19422339]
[1770593247670,0.05243089,2096.3,2095.2,1.19319648]
[1770593247671,0.001,2096.2,2095.2,1.19319648]
[1770593249488,1.19363429,2096.2,2095.1,1.51076088]
[1770593249777,0.001,2096.2,2095.1,1.51076088]
[1770593249980,0.001,2096.2,2095.3,1.50976088]
[1770593250174,1.19240675,2096.6,2095.3,1.50976088]
[1770593250375,0.001,2096.5,2095.3,1.50976088]
[1770593250770,0.001,2096.5,2095.5,1.50976088]
[1770593250973,0.001,2096.5,2095.1,1.51076088]
[1770593251487,1.19346362,2096.5,2095.2,1.19320351]
[1770593251684,1.19346362,2096.5,2095.1,0.001]
[1770593251875,3.333,2096.4,2095.1,1.1942594]
[1770593252060,0.05243089,2096.3,2095.1,1.1942594]
[1770593252582,0.001,2096.2,2095.1,1.1942594]
[1770593253484,0.001,2096.2,2095.1,0.001]
[1770593253669,0.001,2096.2,2095.1,1.51076088]
[1770593255987,0.001,2096.2,2095.2,2.70296439]
[1770593256164,0.001,2096.2,2095.3,1.50976088]
[1770593256686,0.001,2096.1,2095.3,1.50976088]
[1770593256985,0.001,2096.1,2095.2,1.19320351]
[1770593258393,0.001,2096.1,2095.4,0.001]
[1770593259595,4.52553935,2096.4,2095.4,1.51076088]
[1770593259795,0.001,2096.3,2095.4,1.51076088]
[1770593260092,0.001,2096.3,2095.6,1.50976088]
[1770593260270,0.001,2096.3,2095.8,1.19286191]
[1770593260474,0.001,2096.3,2095.7,2.70263705]
[1770593260663,0.001,2096.3,2095.4,0.001]
[1770593265295,1.66415466,2096.2,2095.4,0.001]
[1770593265602,0.001,2096.3,2095.4,0.001]
[1770593265799,0.05243089,2096.2,2095.4,0.001]
[1770593266180,0.001,2096.1,2095.4,1.52954424]
[1770593266390,0.001,2096.4,2095.4,1.52954424]
[1770593266598,0.001,2096.4,2095.5,1.19303268]
[1770593266901,0.001,2096.4,2095.4,0.001]
[1770593267077,0.001,2096.4,2095.4,1.19408405]
[1770593267481,0.001,2096.3,2095.4,1.19408405]
[1770593267679,0.001,2096.6,2095.4,0.001]
[1770593267879,0.05243089,2096.5,2095.4,1.19408057]
[1770593268090,0.001,2096.6,2095.4,1.19408057]
[1770593268580,1.19252051,2096.4,2095.4,0.001]
[1770593269083,0.001,2096.3,2095.4,0.001]
[1770593270683,0.002,2096.2,2095.4,0.001]
[1770593271085,0.001,2096.1,2095.4,0.001]
[1770593271607,0.05243089,2096.0,2095.4,0.001]
[1770593272007,0.001,2096.1,2095.4,0.001]
[1770593272886,1.19274809,2096.0,2095.4,0.001]
[1770593273287,0.001,2095.9,2095.4,0.001]
[1770593274605,0.001,2095.8,2095.4,0.001]
[1770593275321,1.19274809,2096.0,2095.1,0.001]
[1770593275529,1.66415466,2095.9,2095.1,0.001]
[1770593275985,1.19274809,2096.0,2095.1,0.001]
[1770593277403,2.80447186,2096.0,2095.1,0.001]
[1770593278512,0.05243089,2095.8,2095.1,0.001]
[1770593279115,1.19297575,2095.6,2095.1,0.001]
[1770593280485,0.05243089,2095.5,2095.1,0.001]
[1770593280689,1.66415466,2095.5,2094.8,0.001]
[1770593281098,1.66415466,2095.5,2094.0,2.72538952]
[1770593281099,1.19326046,2095.1,2094.0,2.72538952]
[1770593281289,1.19326046,2095.1,2094.1,1.52854424]
[1770593281490,1.19326046,2095.1,2094.0,1.19684528]
[1770593281689,1.19326046,2095.1,2094.1,1.52854424]
[1770593282010,8.10574026,2095.7,2094.2,1.52854424]
[1770593282925,4.77174026,2095.7,2094.4,1.52854424]
[1770593283291,1.19291883,2095.8,2095.3,0.001]
[1770593283525,1.19291883,2095.8,2094.5,2.72214653]
[1770593284014,1.19291883,2095.8,2095.0,0.001]
[1770593285323,0.05243089,2095.4,2094.2,0.001]
[1770593285526,4.94572377,2095.4,2094.4,1.19365446]
[1770593285891,3.334,2095.4,2094.3,4.77472016]
[1770593286093,3.334,2095.4,2094.5,1.19359461]